Cogmind - Beta 11.1 @@@ ROGUE MODE // 2022.10.07 @ 19:38:27 Player: Cactushurt Result: Destroyed by Y-54 Guardian with Flak Gun Performance ------------- Evolutions (4) 2000 Regions Visited (9) 1800 Robots Destroyed (14) 70 Value Destroyed (199) 199 Prototype IDs (1) 20 Alien Tech Used (0) 0 Bonus (0) 0 TOTAL SCORE: 4089 Bonus ------- None Cogmind --------- Core Integrity 0/850 Matter 118/300 Energy 125/125 System Corruption 23% Temperature Cool (18) Movement Core (50) Location -6/Extension Parts ------- > --- POWER (3) -------- Light Ion Engine > --- PROPULSION (6) --- (None) > --- UTILITY (4) ------ Advanced Terrain Scan Processor > --- WEAPON (2) ------- (None) > --- INVENTORY (5) ---- Fission Core Cryofiber Web Peak State ------------ > --- POWER ------------ Micro Nuclear Core Light Angular Momentum Engine > --- PROPULSION ------- Carbon-fiber Leg Gravmag Array > --- UTILITY ---------- Improved Cryofiber Web Improved Terrain Scan Processor Advanced Terrain Scan Processor System Guard > --- WEAPON ----------- Hypervelocity Gauss Rifle > --- INVENTORY -------- (None) [Rating: 44] Favorites ----------- Power Light Ion Engine Engine Light Ion Engine Power Core Light Nuclear Core Propulsion Carbon-fiber Leg Leg Carbon-fiber Leg Hover Unit Gravmag Array Flight Unit Surge Thruster Utility Advanced Terrain Scan Processor Device Shield Generator Storage Large Battery Processor Advanced Terrain Scan Processor Protection Propulsion Shielding Weapon Improved EM Shotgun Energy Gun Improved EM Shotgun Ballistic Gun Assault Rifle Launcher Mini Grenade Launcher Build | -11 -10 -9 -9 -8 -7 -6 -6 -6 -6 ------- Run | Scr Mat Mat Min Mat Fac Fac Was Fac Ext Slots Evolved 8 | . . 2 . 2 2 2 . . . Power 2 | . . . . . 1 1 . . . Propulsion 4 | . . 2 . 2 . . . . . Utility 2 | . . . . . 1 1 . . . Weapon . | . . . . . . . . . . Parts Attached 50 | 5 7 6 1 8 4 8 2 6 3 Power 10 | 1 1 2 . 1 1 2 . 1 1 Engine 7 | 1 1 . . 1 1 1 . 1 1 Core 3 | . . 2 . . . 1 . . . Reactor . | . . . . . . . . . . Propulsion 24 | 2 5 3 . 3 3 1 1 4 2 Treads . | . . . . . . . . . . Leg 14 | 2 3 1 . 1 1 . . 4 2 Wheel . | . . . . . . . . . . Hover 3 | . . 1 . . . 1 1 . . Flight 7 | . 2 1 . 2 2 . . . . Utility 10 | . 1 1 1 2 . 4 . 1 . Device 4 | . 1 1 . . . 1 . 1 . Storage 1 | . . . . . . 1 . . . Processor 3 | . . . . 1 . 2 . . . Hackware . | . . . . . . . . . . Protection 2 | . . . 1 1 . . . . . Artifact . | . . . . . . . . . . Weapon 6 | 2 . . . 2 . 1 1 . . Energy Gun 2 | 1 . . . 1 . . . . . Energy Cannon . | . . . . . . . . . . Ballistic Gun 3 | 1 . . . . . 1 1 . . Ballistic Cannon . | . . . . . . . . . . Launcher 1 | . . . . 1 . . . . . Special Weapon . | . . . . . . . . . . Impact Weapon . | . . . . . . . . . . Slashing Weapon . | . . . . . . . . . . Piercing Weapon . | . . . . . . . . . . Special Melee Weapon . | . . . . . . . . . . Unidentified Prototypes 1 | . . . . 1 . . . . . Parts Lost 22 | . 1 4 5 . 1 1 3 1 6 Power 5 | . . 1 1 . 1 1 . . 1 Propulsion 10 | . 1 2 2 . . . . 1 4 Utility 6 | . . 1 2 . . . 2 . 1 Weapon 1 | . . . . . . . 1 . . Highest Loss Streak 6 | . 1 4 5 . 1 1 3 1 6 To Critical Strikes . | . . . . . . . . . . Average Slot Usage (%) 40 | . 64 40 46 36 40 36 31 29 32 Engine 5 | . 14 . . 9 15 3 2 2 5 Core 2 | . . 10 9 . . 2 2 . . Leg 9 | . 18 13 . . 2 6 1 11 15 Hover 2 | . . . 9 . . 5 7 6 . Flight 5 | . 8 5 9 11 15 2 . . . Device 5 | . 14 9 9 . . 4 3 2 4 Processor 4 | . . . . 7 7 8 11 6 6 Energy Gun 1 | . . . . 8 . . . . . Ballistic Gun 1 | . 8 . . . . . . . . Naked Turns 6 | . . . 6 . . . . . . Heaviest Build 16 | 5 7 7 8 6 6 16 16 15 15 Greatest Support 60 | 20 20 10 7 6 15 20 20 30 60 Greatest Overweight (x) 5 | . 1 1 1 1 . . 5 . . Average Overweight (x) . | . . . . . . . . . . Largest Inventory Capacity 5 | 5 5 5 5 5 5 5 5 5 5 Average Capacity 5 | 5 5 5 5 5 5 5 5 5 5 Most Carried 5 | 3 5 5 3 5 3 3 2 4 3 Average Carried 2 | . 2 4 2 1 . 1 1 2 1 Final Capacity 5 | 5 5 5 5 5 5 5 5 5 5 Final Carried 4 | . 4 2 2 4 . 2 1 3 2 Class Distribution -------------------- 95% | Mutant 4% | Sprinter Dominant Class ---------------- Mutant | -10/Materials Mutant | -9/Materials Mutant | -9/Mines Mutant | -8/Materials Sprinter | -7/Factory Mutant | -6/Factory Mutant | -6/Waste Mutant | -6/Factory Mutant | -6/Extension Resources | -11 -10 -9 -9 -8 -7 -6 -6 -6 -6 ----------- Run | Scr Mat Mat Min Mat Fac Fac Was Fac Ext Matter Collected 554 | 229 94 . 68 133 . . . . 30 Remotely . | . . . . . . . . . . Salvage Created 328 | . 94 . 89 115 . . . . 30 Parts 27 | . 12 . 4 8 . . . . 3 Haulers Intercepted . | . . . . . . . . . . Recyclers Shooed 2 | . . . 1 . . . . . 1 Parts Field Recycled . | . . . . . . . . . . Retrieved Matter . | . . . . . . . . . . Parts Self-Destructed . | . . . . . . . . . . Prevented . | . . . . . . . . . . Kills | -11 -10 -9 -9 -8 -7 -6 -6 -6 -6 ------- Run | Scr Mat Mat Min Mat Fac Fac Was Fac Ext Combat Hostiles Destroyed 11 | . 6 . . 5 . . . . . Guns 10 | . 6 . . 4 . . . . . AOE 1 | . . . . 1 . . . . . Classes Destroyed 5 | . 1 . 1 2 . . . . 1 Worker 1 | . . . . 1 . . . . . Builder 1 | . . . . . . . . . 1 Recycler 1 | . . . 1 . . . . . . Swarmer 9 | . 6 . . 3 . . . . . Grunt 2 | . . . . 2 . . . . . Best Kill Streak 3 | . 3 . 1 3 . . . . 1 Combat Bots Only 3 | . 3 . . 3 . . . . . Max Kills in Single Turn 1 | . 1 . 1 1 . . . . 1 Gunslinging . | . . . . . . . . . . Exploded 1 | . . . . 1 . . . . . Melee . | . . . . . . . . . . Uniques/NPCs Destroyed . | . . . . . . . . . . Combat | -11 -10 -9 -9 -8 -7 -6 -6 -6 -6 -------- Run | Scr Mat Mat Min Mat Fac Fac Was Fac Ext Damage Taken 3302 | 66 476 270 374 133 187 96 441 435 824 Core 1466 | 11 163 99 238 34 67 27 307 103 417 Absorbed by Shields 257 | . 198 27 32 . . . . . . Redirected to Shielding 20 | . . . 20 . . . . . . Core Remaining (%) 64 | 95 30 . 15 93 90 . . . . Volleys Fired 23 | . 15 . . 7 . . 1 . . Largest 2 | . 1 . . 2 . . 1 . . Hottest 75 | . 20 . . 75 . . 33 . . Shots Fired 27 | . 15 . . 11 . . 1 . . Gun 24 | . 15 . . 8 . . 1 . . Cannon . | . . . . . . . . . . Launcher 3 | . . . . 3 . . . . . Special . | . . . . . . . . . . Kinetic 16 | . 15 . . . . . 1 . . Thermal . | . . . . . . . . . . Explosive 3 | . . . . 3 . . . . . Electromagnetic 8 | . . . . 8 . . . . . Robot Hit Streak 9 | . 9 . . 6 . . 3 . . Robot Miss Streak 2 | . 1 . . 2 . . . . . Penetration Max . | . . . . . . . . . . Secondary Targets . | . . . . . . . . . . Shots Hit Robots 23 | . 13 . . 9 . . 1 . . Core Hits 26 | . 7 1 1 9 . . 3 2 3 Critical Kills . | . . . . . . . . . . Critical Parts Destroyed 1 | . 1 . . . . . . . . Critical Strikes 1 | . 1 . . . . . . . . Destroy 1 | . 1 . . . . . . . . Melee Attacks . | . . . . . . . . . . Impact . | . . . . . . . . . . Slashing . | . . . . . . . . . . Piercing . | . . . . . . . . . . Sneak Attacks . | . . . . . . . . . . Combat Hostiles . | . . . . . . . . . . Follow-up Attacks . | . . . . . . . . . . Damage Inflicted 516 | . 171 1 16 281 . . 20 11 16 Guns 278 | . 163 . . 108 . . 7 . . Cannons . | . . . . . . . . . . Explosions 173 | . . . . 173 . . . . . Melee . | . . . . . . . . . . Ramming 65 | . 8 1 16 . . . 13 11 16 Kinetic 170 | . 163 . . . . . 7 . . Thermal . | . . . . . . . . . . Explosive 173 | . . . . 173 . . . . . Electromagnetic 108 | . . . . 108 . . . . . Impact . | . . . . . . . . . . Slashing . | . . . . . . . . . . Piercing . | . . . . . . . . . . Highest Corruption 23 | . . . 4 5 . . 17 19 23 Average Corruption 13 | . . . 4 4 . . 8 17 19 Corruption Purged . | . . . . . . . . . . Corruption Blocked . | . . . . . . . . . . Effects 36 | . . . . 10 . . 3 16 7 Message Errors 10 | . . . . 1 . . 1 7 1 Matter Fused 10 | . . . . 4 . . 1 3 2 Heat Flow Errors 1 | . . . . 1 . . . . . Energy Discharges 3 | . . . . 1 . . . 2 . Parts Rejected 1 | . . . . . . . 1 . . Data Loss (minor) 7 | . . . . 2 . . . 2 3 Data Loss (major) 2 | . . . . . . . . 1 1 Misfires 1 | . . . . 1 . . . . . Alerts 1 | . . . . . . . . 1 . Overload Shots . | . . . . . . . . . . Overflow Damage . | . . . . . . . . . . Projectiles . | . . . . . . . . . . Explosions . | . . . . . . . . . . Melee . | . . . . . . . . . . Knockbacks 1 | . . . . . . . . . 1 Impact 1 | . . . . . . . . . 1 Kinetic . | . . . . . . . . . . Secondary . | . . . . . . . . . . Self-Inflicted Damage 32 | . . . 8 11 . . 6 . 7 Shots 1 | . . . . 1 . . . . . Rammed 9 | . . . 2 . . . 3 . 4 Targets Rammed 16 | . 2 1 2 . . . 3 4 4 Kicked 7 | . 2 1 . . . . . 4 . Crushed . | . . . . . . . . . . Highest Temperature 105 | . . . . 105 4 . . . . Average Temperature 36 | . . . . 38 4 . . . . Received Heat Transfer 631 | 36 44 149 . 45 105 30 . 54 168 Siege Activations . | . . . . . . . . . . Robots Corrupted . | . . . . . . . . . . Combat Hostiles . | . . . . . . . . . . Parts Fried . | . . . . . . . . . . Impact Corruptions . | . . . . . . . . . . Robots Melted . | . . . . . . . . . . Combat Hostiles . | . . . . . . . . . . Parts Melted . | . . . . . . . . . . Heat Transferred . | . . . . . . . . . . Parts Sabotaged . | . . . . . . . . . . Parts Stolen . | . . . . . . . . . . Parts Stripped . | . . . . . . . . . . Power Chain Reactions . | . . . . . . . . . . Missiles Intercepted . | . . . . . . . . . . Alert | -11 -10 -9 -9 -8 -7 -6 -6 -6 -6 ------- Run | Scr Mat Mat Min Mat Fac Fac Was Fac Ext Peak Influence 305 | . 305 174 57 177 80 69 24 50 65 Initial 124 | . . 124 57 4 80 34 24 . 19 Average 69 | . 128 144 50 85 78 41 6 32 20 Maximum Alert Level 1 | . 1 . . . . . . . . Low Security (%) 93 | 100 59 100 100 100 100 100 100 100 100 Level 1 6 | . 40 . . . . . . . . Level 2 . | . . . . . . . . . . Level 3 . | . . . . . . . . . . Level 4 . | . . . . . . . . . . Level 5 . | . . . . . . . . . . High Security . | . . . . . . . . . . Max Security . | . . . . . . . . . . Squads Dispatched 7 | . 1 5 . . . . . 1 . Investigation 2 | . . 2 . . . . . . . Extermination . | . . . . . . . . . . Reinforcement 5 | . 1 3 . . . . . 1 . Assault . | . . . . . . . . . . Garrison . | . . . . . . . . . . Intercept . | . . . . . . . . . . Searches Triggered . | . . . . . . . . . . Construction Impeded . | . . . . . . . . . . Haulers Reinforced . | . . . . . . . . . . Active Scanning Responses . | . . . . . . . . . . Cargo Convoy Interrupts . | . . . . . . . . . . Stealth | -11 -10 -9 -9 -8 -7 -6 -6 -6 -6 --------- Run | Scr Mat Mat Min Mat Fac Fac Was Fac Ext Distress Signals 7 | . 3 4 . . . . . . . Communications Jammed . | . . . . . . . . . . Distress Signals . | . . . . . . . . . . Times Spotted 71 | 1 20 10 2 7 3 2 6 5 15 Peak Tracking Total 11 | 1 7 6 2 4 3 1 6 2 11 Tactical Retreats 9 | . 3 1 . 2 . 1 1 . 1 Traps | -11 -10 -9 -9 -8 -7 -6 -6 -6 -6 ------- Run | Scr Mat Mat Min Mat Fac Fac Was Fac Ext Traps Triggered 6 | . . . . 4 . 1 . . 1 Indirectly . | . . . . . . . . . . Trap Hack Attempts . | . . . . . . . . . . Triggered . | . . . . . . . . . . Disarmed . | . . . . . . . . . . Reprogrammed . | . . . . . . . . . . Reused . | . . . . . . . . . . Traps Extracted . | . . . . . . . . . . Installed . | . . . . . . . . . . Triggered . | . . . . . . . . . . Machines | -11 -10 -9 -9 -8 -7 -6 -6 -6 -6 ---------- Run | Scr Mat Mat Min Mat Fac Fac Was Fac Ext Machines Disabled . | . . . . . . . . . . Max in Single Turn . | . . . . . . . . . . Machines Sabotaged . | . . . . . . . . . . Garrisons Compromised . | . . . . . . . . . . Overloaded Fab Kills . | . . . . . . . . . . Hacking | -11 -10 -9 -9 -8 -7 -6 -6 -6 -6 --------- Run | Scr Mat Mat Min Mat Fac Fac Was Fac Ext Machines Accessed 9 | . 2 3 . 1 1 . . 2 . Terminals 9 | . 2 3 . 1 1 . . 2 . Fabricators . | . . . . . . . . . . Repair Stations . | . . . . . . . . . . Recycling Units . | . . . . . . . . . . Scanalyzers . | . . . . . . . . . . Garrison Access . | . . . . . . . . . . Total Hacks 18 | . 3 7 . 3 2 . . 3 . Successful 12 | . 2 4 . 3 1 . . 2 . Failed 6 | . 1 3 . . 1 . . 1 . Catastrophic 1 | . 1 . . . . . . . . Database Lockouts . | . . . . . . . . . . Manual . | . . . . . . . . . . Terminals 18 | . 3 7 . 3 2 . . 3 . Fabricators . | . . . . . . . . . . Repair Stations . | . . . . . . . . . . Recycling Units . | . . . . . . . . . . Scanalyzers . | . . . . . . . . . . Garrison Access . | . . . . . . . . . . Terminal Hacks 12 | . 2 4 . 3 1 . . 2 . Record 6 | . . 3 . 2 1 . . . . Open DSF 2 | . . . . . . . . 2 . Alert Level 1 | . . . . 1 . . . . . Locate Traps 1 | . 1 . . . . . . . . Dispatch Records 1 | . 1 . . . . . . . . Hauler Manifests 1 | . . 1 . . . . . . . Fabricator Hacks . | . . . . . . . . . . Repair Station Hacks . | . . . . . . . . . . Recycling Unit Hacks . | . . . . . . . . . . Scanalyzer . | . . . . . . . . . . Garrison Access Hacks . | . . . . . . . . . . Unauthorized Hacks . | . . . . . . . . . . Terminals . | . . . . . . . . . . Fabricators . | . . . . . . . . . . Repair Stations . | . . . . . . . . . . Recycling Units . | . . . . . . . . . . Scanalyzers . | . . . . . . . . . . Garrison Access . | . . . . . . . . . . Data Cores Recovered . | . . . . . . . . . . Used . | . . . . . . . . . . Hacking Detections 6 | . 2 2 . 1 1 . . . . Full Trace Events 1 | . . 1 . . . . . . . Feedback Events . | . . . . . . . . . . Feedback Blocked . | . . . . . . . . . . Robot Schematics Acquired . | . . . . . . . . . . Robots Built . | . . . . . . . . . . Authchips . | . . . . . . . . . . Time . | . . . . . . . . . . Total Robot Build Rating . | . . . . . . . . . . Part Schematics Acquired . | . . . . . . . . . . Parts Built . | . . . . . . . . . . Authchips . | . . . . . . . . . . Time . | . . . . . . . . . . Total Part Build Rating . | . . . . . . . . . . Parts Repaired . | . . . . . . . . . . Time . | . . . . . . . . . . Parts Recycled . | . . . . . . . . . . Recycled Matter . | . . . . . . . . . . Retrieved Matter . | . . . . . . . . . . Retrieved Components . | . . . . . . . . . . Parts Scanalyzed . | . . . . . . . . . . Part Schematics Acquired . | . . . . . . . . . . Parts Damaged . | . . . . . . . . . . Bothacking | -11 -10 -9 -9 -8 -7 -6 -6 -6 -6 ------------ Run | Scr Mat Mat Min Mat Fac Fac Was Fac Ext Used RIF Installer . | . . . . . . . . . . Robots Hacked . | . . . . . . . . . . Non-combat . | . . . . . . . . . . Combat . | . . . . . . . . . . Robot Hacks Applied . | . . . . . . . . . . Relay Couplers Released . | . . . . . . . . . . Fabnet Peak Effective % . | . . . . . . . . . . Robots Rewired . | . . . . . . . . . . Allies Hacked . | . . . . . . . . . . Hacks Repelled . | . . . . . . . . . . Allies | -11 -10 -9 -9 -8 -7 -6 -6 -6 -6 -------- Run | Scr Mat Mat Min Mat Fac Fac Was Fac Ext Total Allies 1 | . . . . . . . 1 . . Largest Group 1 | . . . . . . . 1 . . Highest-Rated Group 31 | . . . . . . . 31 . . Highest-Rated Ally 31 | . . . . . . . 31 . . Total Orders 2 | . . . . . . . . 2 . ROAM 1 | . . . . . . . . 1 . EXPLORE 1 | . . . . . . . . 1 . Ally Attacks 11 | . . . . . . . 11 . . Total Damage 185 | . . . . . . . 185 . . Kills . | . . . . . . . . . . Allies Corrupted . | . . . . . . . . . . Allies Melted . | . . . . . . . . . . Intel | -11 -10 -9 -9 -8 -7 -6 -6 -6 -6 ------- Run | Scr Mat Mat Min Mat Fac Fac Was Fac Ext Robot Analysis Total . | . . . . . . . . . . Derelict Logs Recovered 1 | . . . 1 . . . . . . Drone Launches 2 | . . . . . . . . 2 . Drone Recoveries 1 | . . . . . . . . 1 . Exploration | -11 -10 -9 -9 -8 -7 -6 -6 -6 -6 ------------- Run | Scr Mat Mat Min Mat Fac Fac Was Fac Ext Turns Passed 2067 | 120 322 283 82 314 67 162 137 383 197 Spaces Moved 1965 | 95 223 232 90 365 119 181 160 311 189 Core 521 | 16 . 24 18 236 . . 95 76 56 Treads . | . . . . . . . . . . Legs 895 | 79 222 172 . . 23 8 23 235 133 Wheels . | . . . . . . . . . . Hover 322 | . . 35 72 . . 173 42 . . Flight 227 | . 1 1 . 129 96 . . . . Fastest Speed 32 | 50 120 50 50 32 32 70 50 50 50 Average Speed 91 | 108 120 107 86 74 49 72 80 102 99 Slowest Speed 300 | 120 120 125 120 100 120 120 300 120 120 Overloaded Moves . | . . . . . . . . . . Propulsion Burnouts . | . . . . . . . . . . Robots Hopped . | . . . . . . . . . . Cave-ins Triggered . | . . . . . . . . . . Exploration Rate (%) 24 | 6 38 25 12 31 5 7 75 13 32 Regions Visited 9 Branch Regions 2 Pre-discovered Areas . | . . . . . . . . . . Known Exits Taken . | . . . . . . . . . . Unknown Exits Taken 7 | 1 1 1 1 1 1 . . 1 . Scrap Searched 1 | . . . 1 . . . . . . Spaces Dug . | . . . . . . . . . . Terrain Destroyed 32 | . . . . 32 . . . . . Melee . | . . . . . . . . . . Projectile . | . . . . . . . . . . AOE 32 | . . . . 32 . . . . . Terrain Rammed . | . . . . . . . . . . Walls Destroyed . | . . . . . . . . . . Machines Disabled . | . . . . . . . . . . Actions | -11 -10 -9 -9 -8 -7 -6 -6 -6 -6 --------- Run | Scr Mat Mat Min Mat Fac Fac Was Fac Ext Total 2222 | 113 267 265 93 401 128 217 166 374 198 Wait 83 | 5 . 20 . . 4 8 . 46 . Move 1958 | 94 222 231 89 364 118 181 159 311 189 Hop . | . . . . . . . . . . Pick Up 56 | 6 10 5 1 13 1 11 1 6 2 Fast Attach . | . . . . . . . . . . Attach 50 | 5 7 6 1 8 4 8 2 6 3 Detach 15 | 1 5 . . 3 . 4 . 2 . Swap . | . . . . . . . . . . Drop 22 | 2 6 2 . 6 1 5 . . . Fire 23 | . 15 . . 7 . . 1 . . Melee . | . . . . . . . . . . Ram 9 | . . . 2 . . . 3 . 4 Kick 6 | . 2 1 . . . . . 3 . Crush . | . . . . . . . . . . Escape Stasis . | . . . . . . . . . . Rewire . | . . . . . . . . . . Trap . | . . . . . . . . . . Miscellaneous . | . . . . . . . . . . Route ------- -11/Scrapyard -10/Materials -9/Materials -9/Mines -8/Materials (discovered 2 exits: *Fac / Sto) -7/Factory -6/Factory -6/Waste -6/Factory -6/Extension History --------- Turn | Location | Event 2 | -11/Scrapyard | Met Revision 17 74 | -11/Scrapyard | Discovered new exit (range 8) 121 | -11/Scrapyard | Entered Materials 317 | -10/Materials | Build established: Mutant 426 | -10/Materials | Core integrity fell below 50% 426 | -10/Materials | Discovered new exit (range 13) 443 | -10/Materials | Entered another Materials area 443 | -9/Materials | Evolved 2 slots: Propulsion x2 723 | -9/Materials | Discovered new exit (range 6) 726 | -9/Materials | Entered Mines 727 | -9/Mines | YI-UF0 nonchalantly dropped a Grenade Launcher on the ground 729 | -9/Mines | Lost 4 parts (1p2n1u) 763 | -9/Mines | Discovered new exit (range 5) 799 | -9/Mines | Core integrity fell below 50% 803 | -9/Mines | Core integrity fell below 20% 808 | -9/Mines | Entered Materials 808 | -8/Materials | Evolved 2 slots: Propulsion x2 809 | -8/Materials | Identified exit to Storage 833 | -8/Materials | Lost 5 parts (1p2n2u) 930 | -8/Materials | Discovered new exit (range 5) 1122 | -8/Materials | Entered Factory 1122 | -7/Factory | Evolved 2 slots: Power x1, Utility x1 1182 | -7/Factory | Discovered new exit (range 7) 1189 | -7/Factory | Entered another Factory area 1189 | -6/Factory | Evolved 2 slots: Power x1, Utility x1 1351 | -6/Factory | Sucked down chute 1351 | -6/Factory | Entered Waste 1352 | -6/Waste | Met a frightened Derelict 1358 | -6/Waste | Spotted C-40 Crusher 1366 | -6/Waste | EMP discharged 1366 | -6/Waste | Spotted C-40 Crusher 1398 | -6/Waste | Crushed by Compactor (1 part destroyed, 1 dropped) 1406 | -6/Waste | Crushed by Compactor (0 parts destroyed, 1 dropped) 1407 | -6/Waste | Spotted C-40 Crusher 1413 | -6/Waste | Crushed by Compactor (0 parts destroyed, 1 dropped) 1420 | -6/Waste | Crushed by Compactor (1 part destroyed) 1424 | -6/Waste | Crushed by Compactor (1 part destroyed) 1427 | -6/Waste | Crushed by Compactor (0 parts destroyed, 1 dropped) 1430 | -6/Waste | Spotted C-40 Crusher 1435 | -6/Waste | Spotted C-40 Crusher 1455 | -6/Waste | Lost 3 parts (2u1w) 1466 | -6/Waste | EMP discharged 1466 | -6/Waste | System corruption reached 10% 1469 | -6/Waste | Spotted C-40 Crusher 1483 | -6/Waste | Discovered new exit (range 11) 1488 | -6/Waste | Entered Factory 1789 | -6/Factory | Discovered new exit (range 38) 1870 | -6/Factory | Core integrity fell below 50% 1871 | -6/Factory | Entered Extension 2009 | -6/Extension | Spotted B-75 Beast 2020 | -6/Extension | Spotted B-75 Beast 2031 | -6/Extension | Core integrity fell below 20% 2063 | -6/Extension | Lost 6 parts (1p4n1u) 2068 | -6/Extension | Destroyed by Y-54 Guardian with Flak Gun Last Messages --------------- 02027_ FMUP FQZFV/U|AYCQJEIGK 02032_ Machine disabled. 02048_ Triggered EM Surge Trap. 02048_ The floor emits a surge of raw power. 02048_ System corrupted (+4). 02052_ Slammed into U-05 Engineer. 02052_ U-05 Engineer destroyed. 02053_ Acquired 30 matter. 02053_ R-10 Processor collects Wheel. 02055_ Acquired Lgt. Ion Engine. 02058_ Slammed into R-10 Processor. 02060_ Adv. Terrain Scan Processor broken. 02060_ Destabilizing: Short circuit. 02061_ System corrupted: Component data lost. 02062_ Slammed into R-10 Processor. 02062_ R-10 Processor knocked back. 02066_ Y-54 Guardian springs to life. 02067_ Acquired Fission Core. Map ----- +----------------------------------------------------+ | | | | | | | | | | | | | | | | | | | | | | | | | ?????????????????????????????????????????????????? | | ?????????????????????????????????????????????????? | | ?????????????????????????????????????????????????? | | ?????????????????????????????????????????????????? | | ?????????????????????????????????????????????????? | | ?????????????????????????????????????????????????? | | ?????????????????????????????????????????????????? | | ?????????????????????????????????????????????????? | | ?????????????????????????????????????????????????? | | ?????????????????????????????????????????????????? | | ?????????????????????????????????????????????????? | | ??????????????????????###########????????????????? | | ??????????????????????# #????????????????? | | ??????????????????????# @ ##############???? | | ??????????????????????# R + = #???? | | ??????????????????????# hh ############ #???? | | ??????????????????????+ ggY #??????????# ##### | | ??????????????????????# Y #??????????# | | ??????????????????????# #??????????####### | | ??????????????????????# #????????????????? | | ??????????????????????###########????????????????? | | ?????????????????????????????????????????????????? | | ?????????????????????????????????????????????????? | | ?????????????????????????????????????????????????? | | ?????????????????????????????????????????????????? | | ?????????????????????????????????????????????????? | | ?????????????????????????????????????????????????? | | ?????????????????????????????????????????????????? | | ?????????????????????????????????????????????????? | | ?????????????????????????????????????????????????? | | ?????????????????????????????????????????????????? | | ?????????????????????????????????????????????????? | | ?????????????????????????????????????????????????? | | ?????????????????????????????????????????????????? | | ?????????????????????????????????????????????????? | | ?????????????????????????????????????????????????? | | ################################################## | | | +----------------------------------------------------+ Best States ------------- Heat Dissipation 37 Energy Generation 28 Energy Capacity 200 Matter Stores 300 Matter Capacity 300 Sight Range 16 Terrain Scan Density 310 Base Temperature (-) 150 Corruption Containment 8 Propulsion Shielding 33 Evasion (%) 63 Item Schematics ----------------- None Robot Schematics ------------------ None Fabricated ------------ Nothing Alien Tech Used ----------------- None Achievements -------------- Made in Tau Ceti IV Shopping List System Compromised Challenges ------------ None Game ------ Seed PowerNetworkMapper Manual? 0 Play Time 00:52:31 Cumulative 2.8 hours Start 2022.10.07 @ 18:19:07 End 2022.10.07 @ 19:38:27 Sessions 1 Manual Loads 0 Difficulty Rogue Special Mode None Game No. 3 Rogue 3 Adventurer 0 Explorer 0 Win Type - Total 0 Types 0/0/0/0/0/0/0/0/0 Lore% 2 Gallery% 4 Achievement% 4 Wizard Run 0 Options --------- ASCII 0 Keyboard 0 Movement Vi Keybinds 0 Fullscreen 0 Font 16/CogWide Map View 76x50 Tactical HUD 1 Map Filters NONE Filters NONE Steam 1 RUN: d66a4c33-598c-4e71-a46d-897abfacd48c